fUST/lending_fUST_20241227
["ID","MTS","AMOUNT","RATE_DAILY","PERIOD"]
[346760042,1735266610189,-679.89,0.00010543,2]
[346760043,1735266610240,-500.0,0.00010543,2]
[346760044,1735266610290,-500.0,0.00010543,2]
[346760045,1735266610339,-500.0,0.00010543,2]
[346760046,1735266610389,-500.0,0.00010543,2]
[346760047,1735266610444,-500.0,0.00010543,2]
[346760048,1735266610501,-500.0,0.00010543,2]
[346760049,1735266610556,-500.0,0.00010543,2]
[346760050,1735266610610,-500.0,0.00010543,2]
[346760051,1735266610664,-500.0,0.00010543,2]
[346760052,1735266610715,-500.0,0.00010543,2]
[346760053,1735266610767,-500.0,0.00010543,2]
[346760054,1735266610818,-500.0,0.00010544,2]
[346760055,1735266610872,-507.59108074,0.00010544,2]
[346760056,1735266610920,-500.0,0.00010544,2]
[346760057,1735266610975,-500.0,0.00010544,2]
[346760058,1735266611026,-500.0,0.00010544,2]
[346760059,1735266611076,-500.0,0.00010544,2]
[346760060,1735266611127,-500.0,0.00010544,2]
[346760061,1735266611176,-500.0,0.00010544,2]
[346760062,1735266611227,-500.0,0.00010544,2]
[346760063,1735266611276,-500.0,0.00010544,2]
[346760064,1735266611327,-500.0,0.00010544,2]
[346760065,1735266611388,-500.0,0.00010544,2]
[346760066,1735266611447,-500.0,0.00010544,2]
[346760067,1735266611506,-500.0,0.00010544,2]
[346760068,1735266611559,-500.0,0.00010544,2]
[346760069,1735266611608,-500.0,0.00010544,2]
[346760070,1735266611658,-500.0,0.00010544,2]
[346760071,1735266611709,-500.0,0.00010544,2]
[346760072,1735266611758,-475.36457546,0.00010544,2]
[346760073,1735266611806,-500.0,0.00010544,2]
[346760074,1735266611856,-424.25,0.00010544,2]
[346760075,1735266611907,-500.0,0.00010544,2]
[346760076,1735266611960,-500.0,0.00010544,2]
[346760077,1735266612010,-500.0,0.00010544,2]
[346760078,1735266612061,-500.0,0.00010544,2]
[346760079,1735266612109,-500.0,0.00010544,2]
[346760080,1735266612166,-500.0,0.00010544,2]
[346760081,1735266612217,-500.0,0.00010544,2]
[346760082,1735266612265,-500.0,0.00010544,2]
[346760083,1735266612311,-500.0,0.00010544,2]
[346760084,1735266612362,-1015.9,0.00010544,2]
[346760085,1735266612415,-500.0,0.00010544,2]
[346760086,1735266612471,-500.0,0.00010544,2]
[346760087,1735266612526,-500.0,0.00010544,2]
[346760088,1735266612578,-500.0,0.00010544,2]
[346760089,1735266612635,-1114.91,0.00010544,2]
[346760090,1735266612689,-1114.91,0.00010544,2]
[346760091,1735266612740,-1114.91,0.00010544,2]
[346760092,1735266612790,-1114.91,0.00010544,2]
[346760093,1735266612841,-1115.07,0.00010544,2]
[346760094,1735266612982,-500.0,0.00010544,2]
[346760095,1735266613035,-607.27,0.00010544,2]
[346760096,1735266613087,-500.0,0.00010544,2]
[346760097,1735266613139,-500.0,0.00010544,2]
[346760098,1735266613191,-500.0,0.00010544,2]
[346760099,1735266613239,-500.0,0.00010544,2]
[346760100,1735266613287,-500.0,0.00010544,2]
[346760101,1735266613342,-500.0,0.00010544,2]
[346760102,1735266613393,-9687.34752771,0.00010544,2]
[346760103,1735266613557,1444.88377672,9.72e-05,2]
[346760104,1735266613640,500.0,9.722e-05,2]
[346760105,1735266613671,500.0,9.722e-05,2]
[346760106,1735266613795,500.0,9.72e-05,2]
[346760107,1735266613832,500.0,9.994e-05,2]
[346760108,1735266613942,3671.64913976,9.623e-05,2]
[346760109,1735266614016,500.0,9.722e-05,2]
[346760110,1735266614066,500.0,9.72e-05,2]
[346760111,1735266614098,500.0,9.994e-05,2]
[346760112,1735266614154,500.0,9.722e-05,2]
[346760113,1735266614183,500.0,9.722e-05,2]
[346760114,1735266614215,500.0,9.722e-05,2]
[346760115,1735266614245,500.0,9.722e-05,2]
[346760116,1735266614305,500.0,9.722e-05,2]
[346760117,1735266614357,500.0,9.722e-05,2]
[346760118,1735266614434,500.0,9.722e-05,2]
[346760119,1735266614473,500.0,9.722e-05,2]
[346760120,1735266614530,500.0,9.722e-05,2]
[346760121,1735266614560,500.0,9.72e-05,2]
[346760122,1735266614616,561.48701795,9.722e-05,2]
[346760123,1735266614675,500.0,9.722e-05,2]
[346760124,1735266614707,500.0,9.722e-05,2]
[346760125,1735266614744,400.17,0.00023,120]
[346760126,1735266614772,500.0,9.722e-05,2]
[346760127,1735266614868,500.0,9.722e-05,2]
[346760128,1735266614897,500.0,9.722e-05,2]
[346760129,1735266615127,500.0,9.722e-05,2]
[346760130,1735266615155,500.0,9.722e-05,2]
[346760131,1735266615198,500.89749729,9.72e-05,2]
[346760132,1735266615301,500.0,9.722e-05,2]
[346760133,1735266615334,336.96997329,9.72e-05,2]
[346760134,1735266615524,522.18441875,9.72e-05,2]
[346760135,1735266615731,500.0,9.722e-05,2]
[346760136,1735266615759,540.20931646,9.722e-05,2]
[346760137,1735266615814,500.0,9.72e-05,2]
[346760138,1735266615850,500.0,9.994e-05,2]
[346760139,1735266615879,500.0,9.72e-05,2]
[346760140,1735266616093,500.0,9.719e-05,2]
[346760141,1735266616151,24.21651284,9.722e-05,2]
[346760142,1735266616173,475.78348716,9.722e-05,2]
[346760143,1735266616206,503.89023093,9.996e-05,2]
[346760144,1735266616400,500.0,9.722e-05,2]
[346760145,1735266616438,500.0,9.721e-05,2]
[346760146,1735266616472,500.0,9.72e-05,2]
[346760147,1735266616521,500.0,9.722e-05,2]
[346760148,1735266616550,500.0,9.72e-05,2]
[346760149,1735266616583,502.02801981,9.996e-05,2]
[346760150,1735266616625,160.69660295,9.72e-05,2]
[346760151,1735266616665,500.0,9.718e-05,2]
[346760152,1735266617512,1161.15,9.72e-05,2]
[346760153,1735266617814,1161.15,9.994e-05,2]
[346760154,1735266617934,500.0,9.722e-05,2]
[346760155,1735266618112,500.0,9.72e-05,2]
[346760156,1735266618300,500.0,9.996e-05,2]
[346760157,1735266618364,500.0,9.994e-05,2]
[346760158,1735266620006,505.41,9.719e-05,2]
[346760159,1735266620263,505.41,9.993e-05,2]
[346760160,1735266620807,500.0,9.722e-05,2]
[346760161,1735266624343,500.0,9.723e-05,2]
[346760162,1735266624997,500.0,9.997e-05,2]
[346760163,1735266629370,500.0,9.718e-05,2]
[346760164,1735266630788,500.0,9.718e-05,2]
[346760165,1735266631016,500.0,9.72e-05,2]
[346760166,1735266631201,500.0,9.992e-05,2]
[346760167,1735266631261,500.0,9.994e-05,2]
[346760168,1735266631328,500.0,9.718e-05,2]
[346760169,1735266631572,500.0,9.992e-05,2]
[346760302,1735266636639,501.61024466,9.72e-05,2]
[346760303,1735266637014,500.0,9.718e-05,2]
[346760304,1735266637289,500.0,9.992e-05,2]
[346760305,1735266637924,503.09759545,9.718e-05,2]
[346760316,1735266638287,500.0,9.72e-05,2]
[346760361,1735266638682,-500.0,0.00010266,2]
[346760362,1735266638692,-500.0,0.00010266,2]
[346760363,1735266638701,-500.0,0.00010266,2]
[346760364,1735266638711,-505.41,0.00010267,2]
[346760365,1735266638720,-308.96,0.00010268,2]
[346760366,1735266638730,-372.6348329,0.00010268,2]
[346760463,1735266643878,-127.3651671,0.00010268,2]
[346760464,1735266643887,-386.30398155,0.00010268,2]
[346760465,1735266643899,-774.84601845,0.00010268,2]
[346760467,1735266643909,-32.46870575,0.00010268,2]
[346760468,1735266644019,-467.53129425,0.00010268,2]
[346760469,1735266644028,-500.0,0.00010268,2]
[346760470,1735266644038,-500.0,0.0001027,2]
[346760471,1735266644048,-500.0,0.00010271,2]
[346760472,1735266644058,-500.0,0.0001054,2]
[346760473,1735266644068,-500.0,0.0001054,2]
[346760474,1735266644077,-500.0,0.0001054,2]
[346760475,1735266644086,-505.41,0.00010541,2]
[346760476,1735266644095,-157.95328757,0.00010542,2]
[346760477,1735266644104,-1161.15,0.00010542,2]
[346760478,1735266644114,-297.47,0.00010542,2]
[346760479,1735266644123,-500.0,0.00010542,2]
[346760480,1735266644131,-500.0,0.00010543,2]
[346760481,1735266644141,-500.0,0.00010543,2]
[346760482,1735266644150,-4581.93247229,0.00010544,2]
[346760483,1735266644160,-500.0,0.00010544,2]
[346760484,1735266644170,-500.0,0.00010545,2]
[346760485,1735266644179,-264.38664998,0.00010545,2]
[346760486,1735266644189,-500.0,0.00010545,2]
[346760487,1735266644198,-500.0,0.00010545,2]
[346760488,1735266644207,-500.0,0.00010545,2]
[346760489,1735266644217,-263.67,0.00010545,2]
[346760490,1735266644226,-500.0,0.00010545,2]
[346760491,1735266644235,-500.0,0.00010545,2]
[346760492,1735266644245,-500.0,0.00010545,2]
[346760493,1735266644254,-500.0,0.00010545,2]
[346760494,1735266644263,-500.0,0.00010545,2]
[346760495,1735266644273,-500.0,0.00010545,2]
[346760496,1735266644282,-500.0,0.00010545,2]
[346760497,1735266644291,-500.0,0.00010545,2]
[346760498,1735266644301,-500.0,0.00010545,2]
[346760499,1735266644310,-500.0,0.00010545,2]
[346760500,1735266644320,-500.0,0.00010545,2]
[346760501,1735266644330,-500.0,0.00010545,2]
[346760502,1735266644339,-500.0,0.00010545,2]
[346760503,1735266644348,-500.0,0.00010545,2]
[346760504,1735266644357,-500.0,0.00010545,2]
[346760505,1735266644367,-500.0,0.00010545,2]
[346760506,1735266644376,-500.0,0.00010545,2]
[346760507,1735266644385,-500.0,0.00010545,2]
[346760508,1735266644395,-3358.58,0.00010548,2]
[346760509,1735266644404,-500.0,0.00010548,2]
[346760510,1735266644414,-500.0,0.00010814,2]
[346760511,1735266644423,-508.66,0.00010815,2]
[346760512,1735266644433,-195.97450146,0.00010815,2]
[346760513,1735266644442,-500.0,0.00010815,2]
[346760514,1735266644452,-505.41,0.00010815,2]
[346760515,1735266644461,-500.0,0.00010816,2]
[346760516,1735266644470,-500.0,0.00010816,2]
[346760517,1735266644480,-500.0,0.00010816,2]
[346760518,1735266644489,-500.0,0.00010816,2]
[346760519,1735266644499,-500.0,0.00010816,2]
[346760520,1735266644508,-500.0,0.00010816,2]
[346760521,1735266644518,-500.0,0.00010816,2]
[346760522,1735266644527,-500.0,0.00010816,2]
[346760523,1735266644536,-735.07,0.00010816,2]
[346760524,1735266644545,-500.0,0.00010816,2]
[346760525,1735266644555,-500.0,0.00010816,2]
[346760526,1735266644564,-500.0,0.00010816,2]
[346760527,1735266644573,-579.98,0.00010816,2]
[346760528,1735266644583,-500.0,0.00010816,2]
[346760529,1735266644592,-500.0,0.00010816,2]
[346760530,1735266644601,-500.0,0.00010816,2]
[346760531,1735266644611,-500.0,0.00010816,2]
[346760532,1735266644623,-575.03,0.00010816,2]
[346760533,1735266644632,-500.0,0.00010816,2]
[346760534,1735266644642,-500.0,0.00010816,2]
[346760535,1735266644651,-1123.35,0.00010816,2]
[346760536,1735266644661,-500.0,0.00010816,2]
[346760537,1735266644671,-507.59452086,0.00010816,2]
[346760538,1735266644680,-500.0,0.00010816,2]
[346760539,1735266644689,-500.0,0.00010816,2]
[346760540,1735266644699,-500.0,0.00010816,2]
[346760541,1735266644708,-500.0,0.00010816,2]
[346760542,1735266644718,-505.45346836,0.00010816,2]
[346760543,1735266644727,-500.0,0.00010816,2]
[346760544,1735266644736,-500.0,0.00010816,2]
[346760545,1735266644746,-500.0,0.00010816,2]
[346760546,1735266644755,-5915.28,0.00010816,2]
[346760547,1735266644765,-500.0,0.00010816,2]
[346760548,1735266644776,-500.0,0.00010816,2]
[346760549,1735266644787,-363.98724251,0.00010816,2]
[346760550,1735266644798,-563.53,0.00010816,2]
[346760551,1735266644807,-500.0,0.00010816,2]
[346760552,1735266644819,-2011.09,0.00010816,2]
[346760553,1735266644831,-500.0,0.00010816,2]
[346760554,1735266644845,-500.0,0.00010816,2]
[346760555,1735266644927,-278.95983926,0.00010816,2]
[346760556,1735266644937,-1161.15,0.00010816,2]
[346760557,1735266644947,-500.0,0.00010816,2]
[346760558,1735266644956,-479.0,0.00010817,2]
[346760559,1735266644966,-500.0,0.00010817,2]
[346760560,1735266644975,-500.0,0.00010817,2]
[346760561,1735266644984,-500.0,0.00010817,2]
[346760562,1735266644994,-500.0,0.00010817,2]
[346760563,1735266645004,-500.0,0.00010817,2]
[346760564,1735266645014,-500.0,0.00010817,2]
[346760565,1735266645023,-500.0,0.00010817,2]
[346760566,1735266645032,-500.0,0.00010817,2]
[346760567,1735266645042,-569.62,0.00010817,2]
[346760568,1735266645052,-500.0,0.00010817,2]
[346760569,1735266645061,-500.0,0.00010817,2]
[346760570,1735266645071,-500.0,0.00010817,2]
[346760571,1735266645080,-500.0,0.00010817,2]
[346760572,1735266645089,-500.0,0.00010817,2]
[346760573,1735266645099,-500.0,0.00010817,2]
[346760574,1735266645108,-500.0,0.00010817,2]
[346760575,1735266645119,-500.0,0.00010817,2]
[346760576,1735266645128,-500.0,0.00010817,2]
[346760577,1735266645137,-500.0,0.00010817,2]
[346760578,1735266645146,-500.0,0.00010817,2]
[346760579,1735266645156,-500.0,0.00010817,2]
[346760580,1735266645165,-500.0,0.00010817,2]
[346760581,1735266645174,-500.0,0.00010817,2]
[346760582,1735266645183,-500.0,0.00010817,2]
[346760583,1735266645193,-500.0,0.00010817,2]
[346760584,1735266645202,-500.0,0.00010817,2]
[346760585,1735266645211,-500.0,0.00010817,2]
[346760586,1735266645220,-500.0,0.00010817,2]
[346760587,1735266645230,-500.0,0.00010817,2]
[346760588,1735266645239,-523.48,0.00010817,2]
[346760589,1735266645248,-500.0,0.00010817,2]
[346760590,1735266645258,-500.0,0.00010817,2]
[346760591,1735266645267,-500.0,0.00010817,2]
[346760592,1735266645276,-500.0,0.00010817,2]
[346760593,1735266645285,-500.0,0.00010817,2]
[346760594,1735266645294,-500.0,0.00010817,2]
[346760595,1735266645303,-500.0,0.00010817,2]
[346760596,1735266645313,-500.0,0.00010817,2]
[346760597,1735266645322,-500.0,0.00010817,2]
[346760598,1735266645331,-500.0,0.00010817,2]
[346760599,1735266645341,-679.89,0.00010817,2]
[346760600,1735266645351,-500.0,0.00010817,2]
[346760601,1735266645360,-500.0,0.00010817,2]
[346760602,1735266645372,-500.0,0.00010817,2]
[346760603,1735266645381,-500.0,0.00010817,2]
[346760604,1735266645390,-500.0,0.00010817,2]
[346760605,1735266645399,-500.0,0.00010817,2]
[346760606,1735266645408,-635.51,0.00010817,2]
[346760607,1735266645418,-500.0,0.00010818,2]
[346760608,1735266645428,-500.0,0.00010818,2]
[346760609,1735266645437,-500.0,0.00010818,2]
[346760610,1735266645446,-500.0,0.00010818,2]
[346760611,1735266645456,-500.0,0.00010818,2]
[346760612,1735266645465,-500.0,0.00010818,2]
[346760613,1735266645474,-500.0,0.00010818,2]
[346760614,1735266645483,-500.0,0.00010818,2]
[346760615,1735266645493,-500.0,0.00010818,2]
[346760616,1735266645503,-252.56,0.00010818,2]
[346760617,1735266645512,-500.0,0.00010818,2]
[346760618,1735266645521,-500.0,0.00010818,2]
[346760619,1735266645531,-500.0,0.00010818,2]
[346760620,1735266645540,-582.48,0.00010818,2]
[346760621,1735266645549,-500.0,0.00010818,2]
[346760622,1735266645559,-500.0,0.00010818,2]
[346760623,1735266645568,-500.0,0.00010818,2]
[346760624,1735266645577,-14269.28,0.00010818,2]
[346760625,1735266645587,-500.0,0.00010818,2]
[346760626,1735266645596,-560.57,0.00010819,2]
[346760627,1735266645605,-489.66,0.00010819,2]
[346760628,1735266645615,-500.0,0.00010819,2]
[346760629,1735266645625,-500.0,0.00010819,2]
[346760630,1735266645634,-572.3,0.00010819,2]
[346760631,1735266645643,-420.28,0.00010819,2]
[346760632,1735266645652,-500.0,0.00010819,2]
[346760633,1735266645659,-383.03,0.00010819,2]
[346760634,1735266645667,-500.0,0.00010819,2]
[346760635,1735266645676,-500.0,0.00010819,2]
[346760636,1735266645684,-500.0,0.00010819,2]
[346760637,1735266645693,-500.0,0.00010819,2]
[346760638,1735266645701,-3358.58,0.00010822,2]
[346760639,1735266645708,-500.0,0.00010822,2]
[346760640,1735266645716,-1144.68997144,0.00010855,2]
[346760641,1735266645724,-173.83212,0.00010959,2]
[346760642,1735266645733,-173.83212,0.00010959,2]
[346760643,1735266645742,-1403.350028,0.00010959,2]
[346760644,1735266645750,-1403.350028,0.00010959,2]
[346760645,1735266645758,-151.0,0.00010959,2]
[346760646,1735266645767,-151.0,0.00010959,2]
[346760647,1735266645774,-151.0,0.00010959,2]
[346760648,1735266645783,-151.0,0.00010959,2]
[346760649,1735266645791,-461.36496,0.00010959,2]
[346760650,1735266645799,-461.36496,0.00010959,2]
[346760651,1735266645807,-151.0,0.00010959,2]
[346760652,1735266645816,-2002.942412,0.00010959,2]
[346760653,1735266645825,-2002.942412,0.00010959,2]
[346760654,1735266645837,-151.0,0.00010959,2]
[346760655,1735266645846,-151.0,0.00010959,2]
[346760656,1735266645854,-151.0,0.00011,2]
[346760657,1735266645862,-2873.93020903,0.00011,2]
[346760658,1735266645872,-304.36745634,0.00011088,2]
[346760659,1735266645881,-508.66,0.00011089,2]
[346760660,1735266645890,-500.0,0.00011089,2]
[346760661,1735266645900,-505.41,0.00011089,2]
[346760662,1735266645911,-500.0,0.0001109,2]
[346760663,1735266645919,-500.0,0.0001109,2]
[346760664,1735266645929,-500.0,0.0001109,2]
[346760665,1735266645938,-500.0,0.0001109,2]
[346760666,1735266645948,-500.0,0.0001109,2]
[346760667,1735266645957,-500.0,0.0001109,2]
[346760668,1735266645966,-500.0,0.0001109,2]
[346760669,1735266645976,-648.08458646,0.0001109,2]
[346760670,1735266645985,-735.07,0.0001109,2]
[346760671,1735266645995,-500.0,0.0001109,2]
[346760672,1735266646004,-500.0,0.0001109,2]
[346760673,1735266646014,-463.40075622,0.0001109,2]
[346760674,1735266646023,-500.0,0.0001109,2]
[346760675,1735266646032,-500.0,0.0001109,2]
[346760676,1735266646042,-500.0,0.0001109,2]
[346760677,1735266646051,-500.0,0.0001109,2]
[346760678,1735266646061,-575.03,0.0001109,2]
[346760679,1735266646070,-545.63,0.0001109,2]
[346760680,1735266646079,-500.0,0.0001109,2]
[346760681,1735266646090,-1123.35,0.0001109,2]
[346760682,1735266646100,-500.0,0.0001109,2]
[346760683,1735266646110,-500.0,0.0001109,2]
[346760684,1735266646119,-503.63472708,0.0001109,2]
[346760685,1735266646128,-500.0,0.0001109,2]
[346760686,1735266646138,-500.0,0.0001109,2]
[346760687,1735266646147,-500.0,0.0001109,2]
[346760688,1735266646157,-500.0,0.0001109,2]
[346760689,1735266646229,-500.0,0.0001109,2]
[346760690,1735266646239,-5915.28,0.0001109,2]
[346760692,1735266646248,-500.0,0.0001109,2]
[346760694,1735266646257,-500.0,0.0001109,2]
[346760696,1735266646267,-563.53,0.0001109,2]
[346760698,1735266646276,-500.0,0.0001109,2]
[346760699,1735266646285,-2011.09,0.0001109,2]
[346760700,1735266646294,-500.0,0.0001109,2]
[346760701,1735266646303,-151.0,0.0001109,2]
[346760702,1735266646312,-500.0,0.0001109,2]
[346760703,1735266646321,-1161.15,0.0001109,2]
[346760704,1735266646330,-500.0,0.0001109,2]
[346760705,1735266646339,-500.0,0.00011091,2]
[346760706,1735266646349,-500.0,0.00011091,2]
[346760707,1735266646358,-500.0,0.00011091,2]
[346760708,1735266646368,-500.0,0.00011091,2]
[346760709,1735266646378,-500.0,0.00011091,2]
[346760710,1735266646387,-500.0,0.00011091,2]
[346760711,1735266646396,-500.0,0.00011091,2]
[346760712,1735266646406,-500.0,0.00011091,2]
[346760713,1735266646417,-500.0,0.00011091,2]
[346760714,1735266646426,-151.0,0.00011091,2]
[346760715,1735266646436,-500.0,0.00011091,2]
[346760716,1735266646445,-500.0,0.00011091,2]
[346760717,1735266646455,-500.0,0.00011091,2]
[346760718,1735266646465,-500.0,0.00011091,2]
[346760719,1735266646475,-500.0,0.00011091,2]
[346760720,1735266646484,-153.760651,0.00011091,2]
[346760721,1735266646494,-500.0,0.00011091,2]
[346760722,1735266646503,-500.0,0.00011091,2]
[346760723,1735266646513,-679.89,0.00011091,2]
[346760724,1735266646523,-500.0,0.00011091,2]
[346760725,1735266646533,-500.0,0.00011091,2]
[346760727,1735266646543,-558.68,0.00011091,2]
[346760728,1735266646552,-500.0,0.00011091,2]
[346760730,1735266646561,-500.0,0.00011091,2]
[346760731,1735266646571,-248.31197881,0.00011091,2]
[346760732,1735266646581,-500.0,0.00011091,2]
[346760733,1735266646590,-538.60001575,0.00011091,2]
[346760734,1735266646600,-500.0,0.00011092,2]
[346760735,1735266646610,-500.0,0.00011092,2]
[346760736,1735266646620,-500.0,0.00011092,2]
[346760737,1735266646629,-500.0,0.00011092,2]
[346760738,1735266646639,-500.0,0.00011092,2]
[346760739,1735266646648,-500.0,0.00011092,2]
[346760740,1735266646657,-637.17619935,0.00011092,2]
[346760742,1735266646667,-500.0,0.00011092,2]
[346760744,1735266646676,-500.0,0.00011092,2]
[346760746,1735266646685,-151.0,0.00011092,2]
[346760748,1735266646694,-151.0,0.00011092,2]
[346760750,1735266646704,-151.072556,0.00011092,2]
[346760751,1735266646713,-500.0,0.00011092,2]
[346760753,1735266646722,-165.34,0.00011092,2]
[346760755,1735266646731,-500.0,0.00011092,2]
[346760757,1735266646740,-14269.28,0.00011092,2]
[346760758,1735266646750,-500.0,0.00011092,2]
[346760759,1735266646759,-500.0,0.00011093,2]
[346760760,1735266646768,-500.0,0.00011093,2]
[346760761,1735266646778,-500.0,0.00011093,2]
[346760762,1735266646787,-500.0,0.00011093,2]
[346760763,1735266646796,-640.58,0.00011093,2]
[346760764,1735266646806,-429.25686901,0.00011093,2]
[346760765,1735266646816,-3358.58,0.00011096,2]
[346760766,1735266646827,-500.0,0.00011096,2]
[346760767,1735266646841,-151.0,0.00011096,2]
[346760768,1735266646854,-151.0,0.00011096,2]
[346760769,1735266646865,-2002.942412,0.00011096,2]
[346760770,1735266646875,-2002.942412,0.00011096,2]
[346760771,1735266646884,-151.0,0.00011096,2]
[346760772,1735266646894,-151.0,0.000112,2]
[346760773,1735266646904,-151.0,0.000112,2]
[346760774,1735266646913,-559.748862,0.00011233,2]
[346760775,1735266646923,-559.748862,0.00011233,2]
[346760776,1735266646933,-151.0,0.000113,2]
[346760777,1735266646943,-151.0,0.000113,2]
[346760778,1735266646952,-508.66,0.00011363,2]
[346760779,1735266646962,-357.66688492,0.00011363,2]
[346760780,1735266646971,-505.41,0.00011363,2]
[346760781,1735266646980,-500.0,0.00011364,2]
[346760782,1735266646989,-284.28,0.00011364,2]
[346760783,1735266646999,-500.0,0.00011364,2]
[346760784,1735266647008,-500.0,0.00011364,2]
[346760785,1735266647020,-500.0,0.00011364,2]
[346760786,1735266647029,-500.0,0.00011364,2]
[346760787,1735266647038,-500.0,0.00011364,2]
[346760788,1735266647047,-735.07,0.00011364,2]
[346760789,1735266647056,-169.7,0.00011364,2]
[346760790,1735266647065,-500.0,0.00011364,2]
[346760791,1735266647075,-500.0,0.00011364,2]
[346760792,1735266647084,-500.0,0.00011364,2]
[346760793,1735266647093,-500.0,0.00011364,2]
[346760794,1735266647102,-575.03,0.00011364,2]
[346760795,1735266647112,-500.0,0.00011364,2]
[346760796,1735266647121,-1123.35,0.00011364,2]
[346760797,1735266647130,-500.0,0.00011364,2]
[346760798,1735266647139,-500.0,0.00011364,2]
[346760799,1735266647148,-461.36496,0.00011364,2]
[346760800,1735266647157,-461.36496,0.00011364,2]
[346760801,1735266647167,-500.0,0.00011364,2]
[346760802,1735266647175,-500.0,0.00011364,2]
[346760803,1735266647184,-500.0,0.00011364,2]
[346760804,1735266647193,-500.0,0.00011364,2]
[346760805,1735266647202,-5915.28,0.00011364,2]
[346760806,1735266647211,-500.0,0.00011364,2]
[346760807,1735266647220,-500.0,0.00011364,2]
[346760808,1735266647229,-563.53,0.00011364,2]
[346760809,1735266647238,-500.0,0.00011364,2]
[346760810,1735266647247,-2011.09,0.00011364,2]
[346760811,1735266647256,-500.0,0.00011364,2]
[346760812,1735266647265,-500.0,0.00011364,2]
[346760813,1735266647275,-1161.15,0.00011364,2]
[346760814,1735266647284,-500.0,0.00011364,2]
[346760815,1735266647293,-500.0,0.00011365,2]
[346760816,1735266647302,-500.0,0.00011365,2]
[346760817,1735266647311,-500.0,0.00011365,2]
[346760818,1735266647320,-500.0,0.00011365,2]
[346760819,1735266647329,-500.0,0.00011365,2]
[346760820,1735266647339,-500.0,0.00011365,2]
[346760821,1735266647347,-500.0,0.00011365,2]
[346760822,1735266647356,-630.02542541,0.00011365,2]
[346760823,1735266647365,-151.0,0.00011365,2]
[346760824,1735266647374,-151.0,0.00011365,2]
[346760825,1735266647383,-500.0,0.00011365,2]
[346760826,1735266647450,-500.0,0.00011365,2]
[346760827,1735266647459,-151.0,0.00011365,2]
[346760828,1735266647468,-625.56,0.00011365,2]
[346760829,1735266647477,-500.0,0.00011365,2]
[346760830,1735266647486,-500.0,0.00011365,2]
[346760831,1735266647495,-500.0,0.00011365,2]
[346760832,1735266647504,-679.89,0.00011365,2]
[346760833,1735266647513,-500.0,0.00011365,2]
[346760834,1735266647522,-454.56,0.00011366,2]
[346760835,1735266647532,-500.0,0.00011366,2]
[346760836,1735266647542,-637.88,0.00011366,2]
[346760837,1735266647551,-500.0,0.00011366,2]
[346760838,1735266647560,-500.0,0.00011366,2]